Workbook

Sheet IMPO TONS
G1: Fecha última actualización: 31/07/2025
G2: Contacto: info@camport.cl
A4: ÚLTIMOS 12 MESES | B4: IMPORTACIONES POR LUGAR DE INGRESO
A5: Peso en Toneladas | B5: Periodo
A6: Lugar de Ingreso (Puerto) | B6: Julio - 2024 | C6: Agosto - 2024 | D6: Septiembre - 2024 | E6: Octubre - 2024 | F6: Noviembre - 2024 | G6: Diciembre - 2024 | H6: Enero - 2025 | I6: Febrero - 2025 | J6: Marzo - 2025 | K6: Abril - 2025 | L6: Mayo - 2025 | M6: Junio - 2025
A7: ANTOFAGASTA | B7: 53,290.2 | C7: 106,929.0 | D7: 68,707.5 | E7: 105,853.3 | F7: 104,293.8 | G7: 110,879.7 | H7: 110,863.8 | I7: 130,336.5 | J7: 107,187.0 | K7: 85,140.8 | L7: 88,093.7 | M7: 124,452.2
A8: ARICA | B8: 9,650.9 | C8: 29,990.8 | D8: 3,416.6 | E8: 4,215.6 | F8: 35,961.6 | G8: 3,285.6 | H8: 3,962.9 | I8: 6,392.3 | J8: 9,417.5 | K8: 31,949.8 | L8: 8,180.1 | M8: 5,522.1
A9: CABO NEGRO | B9: 47.4 | C9: 0.0 | D9: 0.0 | E9: 0.0 | F9: 0.0 | G9: 0.0 | H9: 0.0 | I9: 0.0 | J9: 0.0 | K9: 0.0 | L9: 0.0 | M9: 0.0
A10: CALBUCO | B10: 41,592.8 | C10: 8,199.1 | D10: 42,064.2 | E10: 48,110.0 | F10: 35,091.7 | G10: 55,771.8 | H10: 111,879.4 | I10: 24,783.4 | J10: 21,500.0 | K10: 11,005.4 | L10: 0.0 | M10: 63,836.5
A11: CALDERA | B11: 47,926.5 | C11: 34,118.1 | D11: 39,002.9 | E11: 45,172.5 | F11: 38,881.4 | G11: 25,666.7 | H11: 58,511.7 | I11: 3,737.7 | J11: 26,314.7 | K11: 43,340.2 | L11: 17,352.6 | M11: 27,910.1
A12: CALETA COLOSO | B12: 0.0 | C12: 0.0 | D12: 0.0 | E12: 0.0 | F12: 0.0 | G12: 0.0 | H12: 0.0 | I12: 0.0 | J12: 0.0 | K12: 0.0 | L12: 0.0 | M12: 0.0
A13: CHACABUCO / PUERTO AYSÉN | B13: 0.0 | C13: 0.0 | D13: 0.0 | E13: 0.0 | F13: 0.0 | G13: 1.9 | H13: 0.0 | I13: 0.0 | J13: 0.0 | K13: 0.0 | L13: 0.0 | M13: 49.7
A14: CHAÑARAL / BARQUITO | B14: 4,596.9 | C14: 25,182.7 | D14: 24,949.0 | E14: 24,674.4 | F14: 28,626.4 | G14: 5,055.3 | H14: 24,593.9 | I14: 14,697.6 | J14: 5,808.8 | K14: 18,974.3 | L14: 17,369.7 | M14: 32,126.3
A15: COQUIMBO | B15: 10,913.1 | C15: 100.9 | D15: 0.0 | E15: 0.0 | F15: 362.2 | G15: 567.5 | H15: 257.1 | I15: 3,476.3 | J15: 3,581.2 | K15: 30.6 | L15: 3,943.0 | M15: 2,400.0
A16: CORONEL | B16: 134,931.0 | C16: 102,307.9 | D16: 122,998.3 | E16: 156,822.4 | F16: 95,467.2 | G16: 46,025.2 | H16: 68,566.9 | I16: 53,467.2 | J16: 84,833.2 | K16: 107,031.5 | L16: 59,804.0 | M16: 57,056.9
A17: CORRAL | B17: 0.0 | C17: 0.0 | D17: 0.0 | E17: 0.0 | F17: 0.0 | G17: 0.0 | H17: 0.0 | I17: 0.0 | J17: 0.0 | K17: 0.0 | L17: 0.0 | M17: 0.0
A18: GNL MEJILLONES | B18: 0.0 | C18: 0.0 | D18: 0.0 | E18: 0.0 | F18: 0.0 | G18: 0.0 | H18: 0.0 | I18: 0.0 | J18: 0.0 | K18: 0.0 | L18: 0.0 | M18: 0.0
A19: GUAYACÁN | B19: 3,393.3 | C19: 4,806.8 | D19: 497.2 | E19: 6,726.3 | F19: 0.0 | G19: 0.0 | H19: 8,013.2 | I19: 874.5 | J19: 7,547.6 | K19: 6,694.6 | L19: 7,182.4 | M19: 814.8
A20: HUASCO / GUACOLDA | B20: 80,278.0 | C20: 66,169.7 | D20: 78,263.3 | E20: 71,368.1 | F20: 83,727.0 | G20: 132,295.6 | H20: 11,546.7 | I20: 69,122.4 | J20: 144,420.2 | K20: 14,396.2 | L20: 76,347.0 | M20: 209,023.0
A21: IQUIQUE | B21: 15,938.0 | C21: 11,579.6 | D21: 8,663.2 | E21: 9,159.2 | F21: 21,873.4 | G21: 22,594.1 | H21: 20,744.9 | I21: 9,611.4 | J21: 17,703.4 | K21: 32,560.3 | L21: 18,230.1 | M21: 20,084.4
A22: LIRQUÉN | B22: 71,904.9 | C22: 94,397.3 | D22: 29,825.7 | E22: 56,164.8 | F22: 87,730.2 | G22: 83,443.4 | H22: 61,035.6 | I22: 70,857.5 | J22: 71,366.9 | K22: 54,753.9 | L22: 72,080.2 | M22: 79,989.9
A23: LOS VILOS | B23: 0.0 | C23: 0.0 | D23: 0.0 | E23: 0.0 | F23: 0.0 | G23: 0.0 | H23: 0.0 | I23: 0.0 | J23: 0.0 | K23: 0.0 | L23: 0.0 | M23: 0.0
A24: MEJILLONES | B24: 729,482.4 | C24: 503,158.1 | D24: 700,774.7 | E24: 639,652.8 | F24: 598,764.4 | G24: 576,992.6 | H24: 664,388.1 | I24: 534,671.9 | J24: 484,202.3 | K24: 683,054.7 | L24: 732,173.5 | M24: 618,479.0
A25: MICHILLA | B25: 0.0 | C25: 0.0 | D25: 0.0 | E25: 0.0 | F25: 0.0 | G25: 0.0 | H25: 0.0 | I25: 0.0 | J25: 0.0 | K25: 0.0 | L25: 0.0 | M25: 0.0
A26: MUELLE HUACHIPATO | B26: 74,884.2 | C26: 19,927.7 | D26: 74,767.0 | E26: 27,457.4 | F26: 16,668.2 | G26: 81,884.4 | H26: 31,878.9 | I26: 18,427.5 | J26: 27,172.4 | K26: 61,477.4 | L26: 46,606.5 | M26: 46,071.0
A27: NATALES | B27: 0.0 | C27: 0.0 | D27: 0.0 | E27: 0.0 | F27: 0.0 | G27: 0.0 | H27: 0.0 | I27: 0.0 | J27: 0.0 | K27: 0.0 | L27: 0.0 | M27: 0.0
A28: PATACHE | B28: 0.0 | C28: 0.0 | D28: 0.0 | E28: 0.0 | F28: 0.0 | G28: 0.0 | H28: 0.0 | I28: 0.0 | J28: 0.0 | K28: 0.0 | L28: 0.0 | M28: 0.0
A29: PATILLOS | B29: 0.0 | C29: 0.0 | D29: 0.0 | E29: 0.0 | F29: 0.0 | G29: 0.0 | H29: 0.0 | I29: 0.0 | J29: 0.0 | K29: 0.0 | L29: 0.0 | M29: 0.0
A30: OTROS PUERTOS CHILENOS | B30: 0.0 | C30: 21.6 | D30: 2.1 | E30: 30,225.6 | F30: 12,000.0 | G30: 2,031.6 | H30: 1,612.6 | I30: 0.0 | J30: 53.7 | K30: 0.0 | L30: 0.0 | M30: 0.0
A31: PENCO | B31: 96,102.5 | C31: 24,108.6 | D31: 39,306.0 | E31: 54,432.0 | F31: 14,346.1 | G31: 1,200.0 | H31: 15,744.2 | I31: 20,453.5 | J31: 10,709.9 | K31: 33,322.6 | L31: 23,656.5 | M31: 43,746.6
A32: PUERTO ANGAMOS | B32: 52,350.9 | C32: 50,041.9 | D32: 34,194.1 | E32: 60,694.2 | F32: 176,208.9 | G32: 90,264.4 | H32: 35,463.9 | I32: 43,638.7 | J32: 72,856.5 | K32: 66,538.1 | L32: 60,954.3 | M32: 80,675.5
A33: PUERTO CABO FROWARD | B33: 37,461.5 | C33: 49,401.2 | D33: 29,024.1 | E33: 113,602.1 | F33: 89,293.6 | G33: 75,799.8 | H33: 77,046.9 | I33: 28,457.0 | J33: 42,069.9 | K33: 45,394.0 | L33: 53,959.8 | M33: 28,081.5
A34: PUERTO MONTT | B34: 90,143.8 | C34: 87,498.0 | D34: 54,926.2 | E34: 62,769.5 | F34: 31,877.9 | G34: 49,473.4 | H34: 79,988.1 | I34: 53,917.1 | J34: 65,333.5 | K34: 69,378.7 | L34: 55,408.8 | M34: 30,205.7
A35: PUERTO WILLIAMS | B35: 0.0 | C35: 0.0 | D35: 0.0 | E35: 0.0 | F35: 0.0 | G35: 0.0 | H35: 117.9 | I35: 111.9 | J35: 140.6 | K35: 0.0 | L35: 925.5 | M35: 0.0
A36: PUNTA ARENAS | B36: 10,018.3 | C36: 27,045.7 | D36: 94.0 | E36: 75.8 | F36: 184.6 | G36: 99.3 | H36: 196.4 | I36: 36.6 | J36: 27,994.0 | K36: 62.5 | L36: 296.2 | M36: 29.4
A37: QUINTERO | B37: 983,668.3 | C37: 749,216.8 | D37: 409,567.5 | E37: 828,139.5 | F37: 417,548.1 | G37: 339,949.7 | H37: 691,908.0 | I37: 504,904.9 | J37: 428,474.2 | K37: 858,051.6 | L37: 624,774.3 | M37: 727,631.5
A38: SAN ANTONIO | B38: 1,054,600.3 | C38: 962,962.0 | D38: 913,855.6 | E38: 1,036,425.6 | F38: 977,654.8 | G38: 986,155.3 | H38: 979,921.6 | I38: 997,152.3 | J38: 955,543.1 | K38: 956,104.2 | L38: 929,841.1 | M38: 1,009,607.8
A39: SAN VICENTE | B39: 171,089.2 | C39: 64,073.9 | D39: 143,036.9 | E39: 94,700.0 | F39: 96,831.0 | G39: 129,496.5 | H39: 124,592.8 | I39: 215,952.4 | J39: 174,460.3 | K39: 224,675.9 | L39: 68,695.9 | M39: 130,777.1
A40: TALCAHUANO | B40: 99,787.5 | C40: 208,874.9 | D40: 133,416.9 | E40: 237,998.1 | F40: 291,755.2 | G40: 328,937.9 | H40: 117,738.9 | I40: 256,877.5 | J40: 229,286.8 | K40: 272,616.3 | L40: 160,349.8 | M40: 337,580.0
A41: TERMINAL GRANÉLES DEL NORTE | B41: 369,537.3 | C41: 163,659.5 | D41: 84,334.2 | E41: 150,836.2 | F41: 69,299.1 | G41: 231,181.4 | H41: 233,913.6 | I41: 166,289.6 | J41: 277,202.1 | K41: 171,523.0 | L41: 93,371.1 | M41: 295,124.8
A42: TERMINAL MARÍTIMO ENAEX | B42: 21,450.4 | C42: 25,387.2 | D42: 25,508.3 | E42: 50,907.6 | F42: 25,396.8 | G42: 25,569.1 | H42: 25,228.6 | I42: 40,403.6 | J42: 25,178.4 | K42: 25,409.6 | L42: 25,184.2 | M42: 50,802.0
A43: TERMINAL MARÍTIMO ESCUADRÓN | B43: 3,911.3 | C43: 1,776.6 | D43: 191.8 | E43: 0.0 | F43: 0.0 | G43: 5,539.4 | H43: 29,699.1 | I43: 523.0 | J43: 2,646.0 | K43: 0.0 | L43: 13,284.4 | M43: 0.0
A44: TERMINAL MARÍTIMO OXIQUIM | B44: 4,468.3 | C44: 7,247.3 | D44: 8,597.2 | E44: 5,015.4 | F44: 5,072.5 | G44: 8,934.5 | H44: 6,890.7 | I44: 5,729.4 | J44: 3,601.1 | K44: 7,692.6 | L44: 8,283.7 | M44: 6,976.1
A45: TERMINAL MUELLE MECANIZADO ESPERANZA | B45: 0.0 | C45: 0.0 | D45: 0.0 | E45: 0.0 | F45: 0.0 | G45: 0.0 | H45: 0.0 | I45: 0.0 | J45: 0.0 | K45: 0.0 | L45: 0.0 | M45: 0.0
A46: TERMINAL PORTUARIO TERQUIM | B46: 53,388.2 | C46: 6,667.4 | D46: 31,248.8 | E46: 39,162.4 | F46: 12,100.2 | G46: 16,031.8 | H46: 54,696.7 | I46: 24,597.7 | J46: 24,044.5 | K46: 28,536.7 | L46: 73,310.5 | M46: 23,565.8
A47: TOCOPILLA | B47: 0.0 | C47: 0.0 | D47: 0.0 | E47: 0.0 | F47: 0.0 | G47: 0.0 | H47: 0.0 | I47: 0.0 | J47: 0.0 | K47: 0.0 | L47: 0.0 | M47: 0.0
A48: VALPARAÍSO | B48: 345,880.5 | C48: 303,436.8 | D48: 322,133.3 | E48: 323,127.8 | F48: 308,232.3 | G48: 272,418.5 | H48: 335,064.4 | I48: 271,944.7 | J48: 236,249.9 | K48: 246,661.2 | L48: 347,475.8 | M48: 339,609.1
A49: VENTANAS | B49: 147,356.2 | C49: 69,911.7 | D49: 53,418.4 | E49: 91,188.3 | F49: 62,087.5 | G49: 82,159.6 | H49: 21,401.4 | I49: 82,329.8 | J49: 84,644.2 | K49: 127,107.4 | L49: 240,717.7 | M49: 69,893.4
A50: TOTAL GENERAL | B50: =SUM(B7:B49) -> 4,820,044 | C50: 3,808,199 | D50: 3,476,785 | E50: 4,374,677 | F50: 3,737,336 | G50: 3,789,706 | H50: 4,007,469 | I50: 3,653,776 | J50: 3,671,544 | K50: 4,283,484 | L50: 3,927,852 | M50: 4,462,122
A51: Fuente: Elaboración propia en base a información de Aduana (Declaraciones de Ingreso DIN; importaciones a titulo definitivo ajustadas con sus documentos modificatorios)
A53: Variaciones respecto al mes anterior
A54: Lugar de Ingreso (Puerto) | B54: Julio - 2024 | C54: Agosto - 2024 | D54: Septiembre - 2024 | E54: Octubre - 2024 | F54: Noviembre - 2024 | G54: Diciembre - 2024 | H54: Enero - 2025 | I54: Febrero - 2025 | J54: Marzo - 2025 | K54: Abril - 2025 | L54: Mayo - 2025 | M54: Junio - 2025
A55: ANTOFAGASTA | C55: =C7/B7-1 -> 100.7% | D55: -35.7% | E55: 54.1% | F55: -1.5% | G55: 6.3% | H55: -0.0% | I55: 17.6% | J55: -17.8% | K55: -20.6% | L55: 3.5% | M55: 41.3%
A56: ARICA | C56: =C8/B8-1 -> 210.8% | D56: -88.6% | E56: 23.4% | F56: 753.1% | G56: -90.9% | H56: 20.6% | I56: 61.3% | J56: 47.3% | K56: 239.3% | L56: -74.4% | M56: -32.5%
A57: CABO NEGRO | C57: =C9/B9-1 -> -100.0%
A58: CALBUCO | C58: =C10/B10-1 -> -80.3% | D58: 413.0% | E58: 14.4% | F58: -27.1% | G58: 58.9% | H58: 100.6% | I58: -77.8% | J58: -13.2% | K58: -48.8% | L58: -100.0%
A59: CALDERA | C59: =C11/B11-1 -> -28.8% | D59: 14.3% | E59: 15.8% | F59: -13.9% | G59: -34.0% | H59: 128.0% | I59: -93.6% | J59: 604.0% | K59: 64.7% | L59: -60.0% | M59: 60.8%
A60: CALETA COLOSO | C60: =C12/B12-1 -> 
A61: CHACABUCO / PUERTO AYSÉN | C61: =C13/B13-1 ->  | H61: -100.0%
A62: CHAÑARAL / BARQUITO | C62: =C14/B14-1 -> 447.8% | D62: -0.9% | E62: -1.1% | F62: 16.0% | G62: -82.3% | H62: 386.5% | I62: -40.2% | J62: -60.5% | K62: 226.7% | L62: -8.5% | M62: 85.0%
A63: COQUIMBO | C63: =C15/B15-1 -> -99.1% | D63: -100.0% | G63: 56.7% | H63: -54.7% | I63: 1252.3% | J63: 3.0% | K63: -99.1% | L63: 12806.7% | M63: -39.1%
A64: CORONEL | C64: =C16/B16-1 -> -24.2% | D64: 20.2% | E64: 27.5% | F64: -39.1% | G64: -51.8% | H64: 49.0% | I64: -22.0% | J64: 58.7% | K64: 26.2% | L64: -44.1% | M64: -4.6%
A65: CORRAL | C65: =C17/B17-1 -> 
A66: GNL MEJILLONES | C66: =C18/B18-1 -> 
A67: GUAYACÁN | C67: =C19/B19-1 -> 41.7% | D67: -89.7% | E67: 1252.9% | F67: -100.0% | I67: -89.1% | J67: 763.1% | K67: -11.3% | L67: 7.3% | M67: -88.7%
A68: HUASCO / GUACOLDA | C68: =C20/B20-1 -> -17.6% | D68: 18.3% | E68: -8.8% | F68: 17.3% | G68: 58.0% | H68: -91.3% | I68: 498.6% | J68: 108.9% | K68: -90.0% | L68: 430.3% | M68: 173.8%
A69: IQUIQUE | C69: =C21/B21-1 -> -27.3% | D69: -25.2% | E69: 5.7% | F69: 138.8% | G69: 3.3% | H69: -8.2% | I69: -53.7% | J69: 84.2% | K69: 83.9% | L69: -44.0% | M69: 10.2%
A70: LIRQUÉN | C70: =C22/B22-1 -> 31.3% | D70: -68.4% | E70: 88.3% | F70: 56.2% | G70: -4.9% | H70: -26.9% | I70: 16.1% | J70: 0.7% | K70: -23.3% | L70: 31.6% | M70: 11.0%
A71: LOS VILOS | C71: =C23/B23-1 -> 
A72: MEJILLONES | C72: =C24/B24-1 -> -31.0% | D72: 39.3% | E72: -8.7% | F72: -6.4% | G72: -3.6% | H72: 15.1% | I72: -19.5% | J72: -9.4% | K72: 41.1% | L72: 7.2% | M72: -15.5%
A73: MICHILLA | C73: =C25/B25-1 -> 
A74: MUELLE HUACHIPATO | C74: =C26/B26-1 -> -73.4% | D74: 275.2% | E74: -63.3% | F74: -39.3% | G74: 391.3% | H74: -61.1% | I74: -42.2% | J74: 47.5% | K74: 126.2% | L74: -24.2% | M74: -1.1%
A75: NATALES | C75: =C27/B27-1 -> 
A76: PATACHE | C76: =C28/B28-1 -> 
A77: PATILLOS | C77: =C29/B29-1 -> 
A78: OTROS PUERTOS CHILENOS | C78: =C30/B30-1 ->  | D78: -90.3% | E78: 1433749.6% | F78: -60.3% | G78: -83.1% | H78: -20.6% | I78: -100.0% | K78: -100.0%
A79: PENCO | C79: =C31/B31-1 -> -74.9% | D79: 63.0% | E79: 38.5% | F79: -73.6% | G79: -91.6% | H79: 1212.0% | I79: 29.9% | J79: -47.6% | K79: 211.1% | L79: -29.0% | M79: 84.9%
A80: PUERTO ANGAMOS | C80: =C32/B32-1 -> -4.4% | D80: -31.7% | E80: 77.5% | F80: 190.3% | G80: -48.8% | H80: -60.7% | I80: 23.1% | J80: 67.0% | K80: -8.7% | L80: -8.4% | M80: 32.4%
A81: PUERTO CABO FROWARD | C81: =C33/B33-1 -> 31.9% | D81: -41.2% | E81: 291.4% | F81: -21.4% | G81: -15.1% | H81: 1.6% | I81: -63.1% | J81: 47.8% | K81: 7.9% | L81: 18.9% | M81: -48.0%
A82: PUERTO MONTT | C82: =C34/B34-1 -> -2.9% | D82: -37.2% | E82: 14.3% | F82: -49.2% | G82: 55.2% | H82: 61.7% | I82: -32.6% | J82: 21.2% | K82: 6.2% | L82: -20.1% | M82: -45.5%
A83: PUERTO WILLIAMS | C83: =C35/B35-1 ->  | I83: -5.1% | J83: 25.6% | K83: -100.0% | M83: -100.0%
A84: PUNTA ARENAS | C84: =C36/B36-1 -> 170.0% | D84: -99.7% | E84: -19.4% | F84: 143.6% | G84: -46.2% | H84: 97.8% | I84: -81.4% | J84: 76329.5% | K84: -99.8% | L84: 373.5% | M84: -90.1%
A85: QUINTERO | C85: =C37/B37-1 -> -23.8% | D85: -45.3% | E85: 102.2% | F85: -49.6% | G85: -18.6% | H85: 103.5% | I85: -27.0% | J85: -15.1% | K85: 100.3% | L85: -27.2% | M85: 16.5%
A86: SAN ANTONIO | C86: =C38/B38-1 -> -8.7% | D86: -5.1% | E86: 13.4% | F86: -5.7% | G86: 0.9% | H86: -0.6% | I86: 1.8% | J86: -4.2% | K86: 0.1% | L86: -2.7% | M86: 8.6%
A87: SAN VICENTE | C87: =C39/B39-1 -> -62.5% | D87: 123.2% | E87: -33.8% | F87: 2.3% | G87: 33.7% | H87: -3.8% | I87: 73.3% | J87: -19.2% | K87: 28.8% | L87: -69.4% | M87: 90.4%
A88: TALCAHUANO | C88: =C40/B40-1 -> 109.3% | D88: -36.1% | E88: 78.4% | F88: 22.6% | G88: 12.7% | H88: -64.2% | I88: 118.2% | J88: -10.7% | K88: 18.9% | L88: -41.2% | M88: 110.5%
A89: TERMINAL GRÁNELES DEL NORTE | C89: =C41/B41-1 -> -55.7% | D89: -48.5% | E89: 78.9% | F89: -54.1% | G89: 233.6% | H89: 1.2% | I89: -28.9% | J89: 66.7% | K89: -38.1% | L89: -45.6% | M89: 216.1%
A90: TERMINAL MARÍTIMO ENAEX | C90: =C42/B42-1 -> 18.4% | D90: 0.5% | E90: 99.6% | F90: -50.1% | G90: 0.7% | H90: -1.3% | I90: 60.2% | J90: -37.7% | K90: 0.9% | L90: -0.9% | M90: 101.7%
A91: TERMINAL MARÍTIMO ESCUADRÓN | C91: =C43/B43-1 -> -54.6% | D91: -89.2% | E91: -100.0% | H91: 436.1% | I91: -98.2% | J91: 405.9% | K91: -100.0% | M91: -100.0%
A92: TERMINAL MARÍTIMO OXIQUIM | C92: =C44/B44-1 -> 62.2% | D92: 18.6% | E92: -41.7% | F92: 1.1% | G92: 76.1% | H92: -22.9% | I92: -16.9% | J92: -37.1% | K92: 113.6% | L92: 7.7% | M92: -15.8%
A93: TERMINAL MUELLE MECANIZADO ESPERANZA | C93: =C45/B45-1 -> 
A94: TERMINAL PORTUARIO TERQUIM | C94: =C46/B46-1 -> -87.5% | D94: 368.7% | E94: 25.3% | F94: -69.1% | G94: 32.5% | H94: 241.2% | I94: -55.0% | J94: -2.2% | K94: 18.7% | L94: 156.9% | M94: -67.9%
A95: TOCOPILLA | C95: =C47/B47-1 -> 
A96: VALPARAÍSO | C96: =C48/B48-1 -> -12.3% | D96: 6.2% | E96: 0.3% | F96: -4.6% | G96: -11.6% | H96: 23.0% | I96: -18.8% | J96: -13.1% | K96: 4.4% | L96: 40.9% | M96: -2.3%
A97: VENTANAS | C97: =C49/B49-1 -> -52.6% | D97: -23.6% | E97: 70.7% | F97: -31.9% | G97: 32.3% | H97: -74.0% | I97: 284.7% | J97: 2.8% | K97: 50.2% | L97: 89.4% | M97: -71.0%
A98: TOTAL GENERAL | C98: =C50/B50-1 -> -21.0% | D98: =D50/C50-1 -> -8.7% | E98: =E50/D50-1 -> 25.8% | F98: =F50/E50-1 -> -14.6% | G98: =G50/F50-1 -> 1.4% | H98: =H50/G50-1 -> 5.7% | I98: =I50/H50-1 -> -8.8% | J98: =J50/I50-1 -> 0.5% | K98: =K50/J50-1 -> 16.7% | L98: =L50/K50-1 -> -8.3% | M98: =M50/L50-1 -> 13.6%
